[Event "Titled Tuesday Blitz September 13 Late 2022"]
[White "Danielyan, Vahe"]
[Black "Tanenbaum, Zachary"]
[WhiteFideId "13304828"]
[BlackFideId "2060850"]
[WhiteElo "2421"]
[BlackElo "2175"]
[Result "0-1"]
[Round "05"]
[TimeControl "180+1"]
[Date "2022.09.13"]
[WhiteClock "0:01:45"]
[BlackClock "0:00:35"]

1. d4 {[%clk 0:02:59]}  d5 {[%clk 0:02:59]} 2. c4 {[%clk 0:02:58]}  dxc4 {[%clk 0:03:00]} 3. e4 {[%clk 0:02:57]}  b5 {[%clk 0:02:59]} 4. a4 {[%clk 0:02:55]}  c6 {[%clk 0:02:59]} 5. axb5 {[%clk 0:02:54]}  cxb5 {[%clk 0:03:00]} 6. Nc3 {[%clk 0:02:54]}  a6 {[%clk 0:03:01]} 7. Nxb5 {[%clk 0:02:53]}  axb5 {[%clk 0:03:02]} 8. Rxa8 {[%clk 0:02:53]}  Bb7 {[%clk 0:03:03]} 9. Ra1 {[%clk 0:02:52]}  e6 {[%clk 0:03:03]} 10. Nf3 {[%clk 0:02:45]}  Nf6 {[%clk 0:03:02]} 11. Be2 {[%clk 0:02:41]}  Bb4+ {[%clk 0:02:55]} 12. Bd2 {[%clk 0:02:39]}  Bxd2+ {[%clk 0:02:55]} 13. Qxd2 {[%clk 0:02:39]}  Nxe4 {[%clk 0:02:55]} 14. Qb4 {[%clk 0:02:37]}  Qd5 {[%clk 0:02:46]} 15. O-O {[%clk 0:02:22]}  Nc6 {[%clk 0:02:44]} 16. Qa3 {[%clk 0:02:22]}  b4 {[%clk 0:01:39]} 17. Qe3 {[%clk 0:02:21]}  Nd6 {[%clk 0:01:20]} 18. Rfc1 {[%clk 0:02:16]}  O-O {[%clk 0:01:02]} 19. h4 {[%clk 0:02:01]}  Na5 {[%clk 0:00:55]} 20. Bd1 {[%clk 0:01:57]}  Nf5 {[%clk 0:00:51]} 21. Qf4 {[%clk 0:01:54]}  Nc6 {[%clk 0:00:38]} 22. Bc2 {[%clk 0:01:46]}  Ncxd4 {[%clk 0:00:36]} 23. Bxf5 {[%clk 0:01:45]}  Ne2+ {[%clk 0:00:35]} 0-1


[Site "https://www.chess.com"]

[Event "Titled Tuesday Blitz September 13 Late 2022"]
[White "Djokic, Mihailo"]
[Black "Cardoso Cardoso, Jose Gabriel"]
[WhiteFideId "976440"]
[BlackFideId "4430492"]
[WhiteElo "2315"]
[BlackElo "2485"]
[Result "1-0"]
[Round "05"]
[TimeControl "180+1"]
[Date "2022.09.13"]
[WhiteClock "0:01:38"]
[BlackClock "0:00:03"]

1. e4 {[%clk 0:03:00]}  g6 {[%clk 0:01:49]} 2. d4 {[%clk 0:02:59]}  Bg7 {[%clk 0:01:46]} 3. Nc3 {[%clk 0:02:59]}  c6 {[%clk 0:01:44]} 4. f4 {[%clk 0:02:57]}  d5 {[%clk 0:01:44]} 5. e5 {[%clk 0:02:57]}  h5 {[%clk 0:01:43]} 6. Nf3 {[%clk 0:02:57]}  Nh6 {[%clk 0:01:39]} 7. Be2 {[%clk 0:02:57]}  Bg4 {[%clk 0:01:38]} 8. Be3 {[%clk 0:02:57]}  Nf5 {[%clk 0:01:38]} 9. Bf2 {[%clk 0:02:57]}  Bxf3 {[%clk 0:01:37]} 10. Bxf3 {[%clk 0:02:56]}  e6 {[%clk 0:01:38]} 11. Ne2 {[%clk 0:02:54]}  Nd7 {[%clk 0:01:38]} 12. c3 {[%clk 0:02:54]}  Nh4 {[%clk 0:01:37]} 13. Bxh4 {[%clk 0:02:52]}  Qxh4+ {[%clk 0:01:37]} 14. g3 {[%clk 0:02:53]}  Qe7 {[%clk 0:01:37]} 15. b4 {[%clk 0:02:52]}  a5 {[%clk 0:01:36]} 16. a3 {[%clk 0:02:50]}  Nb6 {[%clk 0:01:36]} 17. Kf2 {[%clk 0:02:42]}  Nc4 {[%clk 0:01:32]} 18. Qb3 {[%clk 0:02:38]}  axb4 {[%clk 0:01:22]} 19. axb4 {[%clk 0:02:36]}  O-O {[%clk 0:01:19]} 20. Rhd1 {[%clk 0:02:28]}  b5 {[%clk 0:01:15]} 21. Ng1 {[%clk 0:02:21]}  Qb7 {[%clk 0:01:10]} 22. Be2 {[%clk 0:02:20]}  Nd2 {[%clk 0:01:05]} 23. Qb2 {[%clk 0:02:13]}  Ne4+ {[%clk 0:01:04]} 24. Kg2 {[%clk 0:02:13]}  Rxa1 {[%clk 0:01:04]} 25. Rxa1 {[%clk 0:02:13]}  Ra8 {[%clk 0:01:05]} 26. Bd3 {[%clk 0:02:11]}  Ra6 {[%clk 0:01:02]} 27. Bxe4 {[%clk 0:02:10]}  dxe4 {[%clk 0:01:02]} 28. Rxa6 {[%clk 0:02:07]}  Qxa6 {[%clk 0:01:02]} 29. Ne2 {[%clk 0:02:06]}  Qa4 {[%clk 0:01:01]} 30. Qb1 {[%clk 0:02:06]}  e3 {[%clk 0:00:55]} 31. Qe4 {[%clk 0:02:06]}  Qd1 {[%clk 0:00:52]} 32. Qxe3 {[%clk 0:02:05]}  Qc2 {[%clk 0:00:52]} 33. h4 {[%clk 0:01:58]}  Bf8 {[%clk 0:00:51]} 34. Kf3 {[%clk 0:01:58]}  Qd1 {[%clk 0:00:49]} 35. Qe4 {[%clk 0:01:55]}  Be7 {[%clk 0:00:38]} 36. Kf2 {[%clk 0:01:55]}  Qd2 {[%clk 0:00:23]} 37. Qxc6 {[%clk 0:01:53]}  Qd3 {[%clk 0:00:23]} 38. Qf3 {[%clk 0:01:47]}  Qd2 {[%clk 0:00:21]} 39. Qb7 {[%clk 0:01:47]}  Bf8 {[%clk 0:00:13]} 40. Qxb5 {[%clk 0:01:47]}  g5 {[%clk 0:00:14]} 41. hxg5 {[%clk 0:01:45]}  Qd1 {[%clk 0:00:11]} 42. Qc6 {[%clk 0:01:44]}  h4 {[%clk 0:00:08]} 43. gxh4 {[%clk 0:01:44]}  Qd3 {[%clk 0:00:08]} 44. b5 {[%clk 0:01:39]}  Qb1 {[%clk 0:00:03]} 45. b6 {[%clk 0:01:38]} 1-0


[Site "https://www.chess.com"]

[Event "Titled Tuesday Blitz September 13 Late 2022"]
[White "Fishbein, Alexander"]
[Black "Melkumyan, Hrant"]
[WhiteFideId "2000377"]
[BlackFideId "13302485"]
[WhiteElo "2410"]
[BlackElo "2604"]
[Result "1-0"]
[Round "05"]
[TimeControl "180+1"]
[Date "2022.09.13"]
[WhiteClock "0:00:55"]
[BlackClock "0:01:24"]

1. e4 {[%clk 0:02:59]}  c6 {[%clk 0:02:54]} 2. d3 {[%clk 0:02:54]}  d5 {[%clk 0:02:55]} 3. Nd2 {[%clk 0:02:52]}  e5 {[%clk 0:02:47]} 4. Ngf3 {[%clk 0:02:51]}  Bd6 {[%clk 0:02:47]} 5. g3 {[%clk 0:02:51]}  Nf6 {[%clk 0:02:47]} 6. Bg2 {[%clk 0:02:51]}  O-O {[%clk 0:02:48]} 7. O-O {[%clk 0:02:50]}  Re8 {[%clk 0:02:48]} 8. b3 {[%clk 0:02:50]}  Na6 {[%clk 0:02:47]} 9. Bb2 {[%clk 0:02:49]}  Nc7 {[%clk 0:02:46]} 10. exd5 {[%clk 0:02:43]}  cxd5 {[%clk 0:02:43]} 11. Re1 {[%clk 0:02:42]}  d4 {[%clk 0:02:37]} 12. Nc4 {[%clk 0:02:41]}  Bg4 {[%clk 0:02:35]} 13. h3 {[%clk 0:02:40]}  Bxf3 {[%clk 0:02:34]} 14. Bxf3 {[%clk 0:02:38]}  Rb8 {[%clk 0:02:35]} 15. Qd2 {[%clk 0:02:24]}  Ncd5 {[%clk 0:02:34]} 16. Qg5 {[%clk 0:02:09]}  h6 {[%clk 0:02:29]} 17. Qh4 {[%clk 0:02:09]}  b5 {[%clk 0:02:17]} 18. Bxd5 {[%clk 0:01:49]}  Nxd5 {[%clk 0:02:12]} 19. Qxd8 {[%clk 0:01:48]}  Rbxd8 {[%clk 0:02:13]} 20. Nxd6 {[%clk 0:01:48]}  Rxd6 {[%clk 0:02:14]} 21. Bxd4 {[%clk 0:01:46]}  f6 {[%clk 0:02:09]} 22. Bc5 {[%clk 0:01:45]}  Rc6 {[%clk 0:02:00]} 23. b4 {[%clk 0:01:45]}  a5 {[%clk 0:01:59]} 24. a3 {[%clk 0:01:44]}  Nc3 {[%clk 0:01:52]} 25. Kg2 {[%clk 0:01:35]}  Rd8 {[%clk 0:01:53]} 26. f4 {[%clk 0:01:29]}  exf4 {[%clk 0:01:49]} 27. gxf4 {[%clk 0:01:30]}  Na4 {[%clk 0:01:50]} 28. d4 {[%clk 0:01:20]}  Nxc5 {[%clk 0:01:42]} 29. dxc5 {[%clk 0:01:19]}  Rd2+ {[%clk 0:01:43]} 30. Kf3 {[%clk 0:01:18]}  Rxc2 {[%clk 0:01:44]} 31. Rad1 {[%clk 0:01:14]}  Ra2 {[%clk 0:01:38]} 32. Re3 {[%clk 0:01:12]}  Kh7 {[%clk 0:01:38]} 33. Rd7 {[%clk 0:01:11]}  Kg6 {[%clk 0:01:31]} 34. h4 {[%clk 0:01:03]}  h5 {[%clk 0:01:25]} 35. Ree7 {[%clk 0:00:55]}  Rxa3+ {[%clk 0:01:24]} 36. Ke4 {[%clk 0:00:55]} 1-0


[Site "https://www.chess.com"]

[Event "Titled Tuesday Blitz September 13 Late 2022"]
[White "Hambleton, Aman"]
[Black "Dounis, Alexandros"]
[WhiteFideId "2606577"]
[BlackFideId "4213238"]
[WhiteElo "2538"]
[BlackElo "2204"]
[Result "0-1"]
[Round "05"]
[TimeControl "180+1"]
[Date "2022.09.13"]
[WhiteClock "0:00:30"]
[BlackClock "0:02:06"]

1. d4 {[%clk 0:02:41]}  Nf6 {[%clk 0:02:58]} 2. Bf4 {[%clk 0:02:35]}  g6 {[%clk 0:02:55]} 3. Nc3 {[%clk 0:02:35]}  d5 {[%clk 0:02:52]} 4. e3 {[%clk 0:02:35]}  a6 {[%clk 0:02:51]} 5. h4 {[%clk 0:02:35]}  h6 {[%clk 0:02:49]} 6. Nf3 {[%clk 0:02:15]}  Bg7 {[%clk 0:02:49]} 7. Ne5 {[%clk 0:02:04]}  O-O {[%clk 0:02:44]} 8. Be2 {[%clk 0:01:50]}  Nbd7 {[%clk 0:02:40]} 9. g4 {[%clk 0:01:43]}  Nxe5 {[%clk 0:02:38]} 10. Bxe5 {[%clk 0:01:19]}  Ne4 {[%clk 0:02:22]} 11. Bxg7 {[%clk 0:01:08]}  Kxg7 {[%clk 0:02:23]} 12. Nxe4 {[%clk 0:01:05]}  dxe4 {[%clk 0:02:24]} 13. d5 {[%clk 0:01:02]}  e5 {[%clk 0:02:22]} 14. Qd2 {[%clk 0:00:50]}  c6 {[%clk 0:02:18]} 15. O-O-O {[%clk 0:00:41]}  cxd5 {[%clk 0:02:16]} 16. Qxd5 {[%clk 0:00:42]}  Qxd5 {[%clk 0:02:06]} 17. Rxd5 {[%clk 0:00:30]}  Kf6 {[%clk 0:02:06]} 0-1


[Site "https://www.chess.com"]

[Event "Titled Tuesday Blitz September 13 Late 2022"]
[White "Ivic, Velimir"]
[Black "Naroditsky, Daniel"]
[WhiteFideId "950122"]
[BlackFideId "2026961"]
[WhiteElo "2625"]
[BlackElo "2628"]
[Result "1/2-1/2"]
[Round "05"]
[TimeControl "180+1"]
[Date "2022.09.13"]
[WhiteClock "0:00:41"]
[BlackClock "0:00:49"]

1. e4 {[%clk 0:03:00]}  c6 {[%clk 0:02:54]} 2. d4 {[%clk 0:02:59]}  d5 {[%clk 0:02:55]} 3. Nd2 {[%clk 0:02:59]}  dxe4 {[%clk 0:02:55]} 4. Nxe4 {[%clk 0:03:00]}  Nf6 {[%clk 0:02:56]} 5. Nxf6+ {[%clk 0:03:00]}  exf6 {[%clk 0:02:56]} 6. c3 {[%clk 0:03:01]}  Bd6 {[%clk 0:02:57]} 7. Bd3 {[%clk 0:03:02]}  O-O {[%clk 0:02:57]} 8. Qc2 {[%clk 0:03:02]}  Re8+ {[%clk 0:02:58]} 9. Ne2 {[%clk 0:03:03]}  h5 {[%clk 0:02:59]} 10. O-O {[%clk 0:03:03]}  h4 {[%clk 0:02:59]} 11. h3 {[%clk 0:03:04]}  Nd7 {[%clk 0:02:47]} 12. Bd2 {[%clk 0:03:04]}  Nf8 {[%clk 0:02:45]} 13. Rae1 {[%clk 0:03:05]}  g6 {[%clk 0:02:39]} 14. Nf4 {[%clk 0:02:57]}  Rxe1 {[%clk 0:02:27]} 15. Rxe1 {[%clk 0:02:58]}  f5 {[%clk 0:02:27]} 16. Bc4 {[%clk 0:02:50]}  Qc7 {[%clk 0:02:26]} 17. Qc1 {[%clk 0:02:22]}  Bd7 {[%clk 0:01:54]} 18. Nd3 {[%clk 0:02:18]}  Be6 {[%clk 0:01:49]} 19. Bb3 {[%clk 0:02:07]}  Re8 {[%clk 0:01:46]} 20. Bg5 {[%clk 0:02:04]}  Be7 {[%clk 0:01:42]} 21. Bxe7 {[%clk 0:01:58]}  Qxe7 {[%clk 0:01:37]} 22. Nc5 {[%clk 0:01:57]}  b6 {[%clk 0:01:34]} 23. Nxe6 {[%clk 0:01:52]}  Nxe6 {[%clk 0:01:35]} 24. Qh6 {[%clk 0:01:23]}  Qf6 {[%clk 0:01:30]} 25. Re5 {[%clk 0:01:12]}  Nc7 {[%clk 0:01:13]} 26. Qe3 {[%clk 0:00:54]}  Rxe5 {[%clk 0:01:13]} 27. dxe5 {[%clk 0:00:54]}  Qe7 {[%clk 0:01:04]} 28. Qd4 {[%clk 0:00:53]}  Ne6 {[%clk 0:00:51]} 29. Bxe6 {[%clk 0:00:48]}  Qxe6 {[%clk 0:00:51]} 30. f4 {[%clk 0:00:41]}  Qxa2 {[%clk 0:00:46]} 31. Qd8+ {[%clk 0:00:41]}  Kg7 {[%clk 0:00:47]} 32. Qf6+ {[%clk 0:00:40]}  Kg8 {[%clk 0:00:48]} 33. Qd8+ {[%clk 0:00:40]}  Kg7 {[%clk 0:00:48]} 34. Qf6+ {[%clk 0:00:40]}  Kg8 {[%clk 0:00:49]} 35. Qd8+ {[%clk 0:00:41]} 1/2-1/2


[Site "https://www.chess.com"]

[Event "Titled Tuesday Blitz September 13 Late 2022"]
[White "Keymer, Vincent"]
[Black "Zhigalko, Sergei"]
[WhiteFideId "12940690"]
[BlackFideId "13502956"]
[WhiteElo "2585"]
[BlackElo "2662"]
[Result "1-0"]
[Round "05"]
[TimeControl "180+1"]
[Date "2022.09.13"]
[WhiteClock "0:00:42"]
[BlackClock "0:00:02"]

1. Nf3 {[%clk 0:03:00]}  d5 {[%clk 0:02:59]} 2. e3 {[%clk 0:02:59]}  Nf6 {[%clk 0:02:57]} 3. c4 {[%clk 0:02:58]}  e6 {[%clk 0:02:58]} 4. Nc3 {[%clk 0:02:59]}  b6 {[%clk 0:02:55]} 5. cxd5 {[%clk 0:02:58]}  exd5 {[%clk 0:02:56]} 6. g3 {[%clk 0:02:58]}  Bd6 {[%clk 0:02:52]} 7. Bg2 {[%clk 0:02:58]}  Ba6 {[%clk 0:02:50]} 8. b4 {[%clk 0:02:58]}  O-O {[%clk 0:02:38]} 9. b5 {[%clk 0:02:58]}  Bb7 {[%clk 0:02:38]} 10. O-O {[%clk 0:02:55]}  a6 {[%clk 0:02:36]} 11. Bb2 {[%clk 0:02:54]}  axb5 {[%clk 0:02:32]} 12. Nxb5 {[%clk 0:02:55]}  Be7 {[%clk 0:02:22]} 13. Qc2 {[%clk 0:02:45]}  c5 {[%clk 0:02:19]} 14. d4 {[%clk 0:02:32]}  c4 {[%clk 0:02:09]} 15. Ne5 {[%clk 0:02:28]}  Nc6 {[%clk 0:02:07]} 16. a4 {[%clk 0:02:24]}  Nb4 {[%clk 0:01:49]} 17. Qe2 {[%clk 0:02:15]}  Re8 {[%clk 0:01:26]} 18. Nxc4 {[%clk 0:02:06]}  Rc8 {[%clk 0:01:03]} 19. Rfc1 {[%clk 0:02:03]}  Ne4 {[%clk 0:00:51]} 20. Ne5 {[%clk 0:02:00]}  Ba6 {[%clk 0:00:28]} 21. Rxc8 {[%clk 0:01:55]}  Qxc8 {[%clk 0:00:26]} 22. Rc1 {[%clk 0:01:55]}  Qe6 {[%clk 0:00:20]} 23. Ba3 {[%clk 0:01:45]}  Rc8 {[%clk 0:00:16]} 24. Qb2 {[%clk 0:01:34]}  Bxb5 {[%clk 0:00:13]} 25. axb5 {[%clk 0:01:21]}  Rxc1+ {[%clk 0:00:06]} 26. Qxc1 {[%clk 0:01:22]}  Na2 {[%clk 0:00:03]} 27. Qa1 {[%clk 0:00:46]}  Bxa3 {[%clk 0:00:02]} 28. Qxa2 {[%clk 0:00:46]}  Bd6 {[%clk 0:00:01]} 29. Bxe4 {[%clk 0:00:41]}  dxe4 {[%clk 0:00:01]} 30. Qxe6 {[%clk 0:00:41]}  fxe6 {[%clk 0:00:02]} 31. Nc4 {[%clk 0:00:42]}  Bb4 {[%clk 0:00:02]} 32. Nxb6 {[%clk 0:00:42]} 1-0


[Site "https://www.chess.com"]

[Event "Titled Tuesday Blitz September 13 Late 2022"]
[White "Lenderman, Aleksandr"]
[Black "Kobo, Ori"]
[WhiteFideId "2021285"]
[BlackFideId "2812320"]
[WhiteElo "2607"]
[BlackElo "2420"]
[Result "1-0"]
[Round "05"]
[TimeControl "180+1"]
[Date "2022.09.13"]
[WhiteClock "0:01:57"]
[BlackClock "0:00:09"]

1. e4 {[%clk 0:03:00]}  e5 {[%clk 0:02:59]} 2. Nf3 {[%clk 0:03:00]}  Nc6 {[%clk 0:02:59]} 3. d4 {[%clk 0:03:00]}  exd4 {[%clk 0:02:59]} 4. Nxd4 {[%clk 0:03:00]}  Qf6 {[%clk 0:02:59]} 5. Nb5 {[%clk 0:02:54]}  Bc5 {[%clk 0:02:56]} 6. Qf3 {[%clk 0:02:52]}  Bb6 {[%clk 0:02:54]} 7. N1c3 {[%clk 0:02:44]}  Qxf3 {[%clk 0:02:37]} 8. gxf3 {[%clk 0:02:44]}  a6 {[%clk 0:02:38]} 9. Na3 {[%clk 0:02:44]}  Nd4 {[%clk 0:02:17]} 10. f4 {[%clk 0:02:38]}  Ne7 {[%clk 0:02:11]} 11. Be3 {[%clk 0:02:35]}  Ba7 {[%clk 0:01:44]} 12. O-O-O {[%clk 0:02:33]}  Ndc6 {[%clk 0:01:42]} 13. Bxa7 {[%clk 0:02:32]}  Rxa7 {[%clk 0:01:43]} 14. Nd5 {[%clk 0:02:30]}  Kd8 {[%clk 0:01:36]} 15. Nc4 {[%clk 0:02:29]}  b5 {[%clk 0:01:22]} 16. Nce3 {[%clk 0:02:29]}  Re8 {[%clk 0:01:09]} 17. Rg1 {[%clk 0:02:27]}  Rg8 {[%clk 0:00:48]} 18. f5 {[%clk 0:02:18]}  d6 {[%clk 0:00:37]} 19. Be2 {[%clk 0:02:12]}  Nxd5 {[%clk 0:00:34]} 20. Nxd5 {[%clk 0:02:12]}  g6 {[%clk 0:00:29]} 21. f4 {[%clk 0:02:09]}  Rh8 {[%clk 0:00:19]} 22. Bf3 {[%clk 0:02:04]}  gxf5 {[%clk 0:00:17]} 23. e5 {[%clk 0:02:04]}  Bd7 {[%clk 0:00:13]} 24. Rg7 {[%clk 0:02:00]}  Be8 {[%clk 0:00:09]} 25. Nf6 {[%clk 0:01:58]}  Ke7 {[%clk 0:00:09]} 26. Nxe8 {[%clk 0:01:57]} 1-0


[Site "https://www.chess.com"]

[Event "Titled Tuesday Blitz September 13 Late 2022"]
[White "Maksimovic, Bojan"]
[Black "Barria Zuniga, Daniel"]
[WhiteFideId "14408120"]
[BlackFideId "3400816"]
[WhiteElo "2447"]
[BlackElo "2414"]
[Result "1-0"]
[Round "05"]
[TimeControl "180+1"]
[Date "2022.09.13"]
[WhiteClock "0:00:14"]
[BlackClock "0:00:02"]

1. e4 {[%clk 0:02:45]}  c5 {[%clk 0:02:17]} 2. Nf3 {[%clk 0:02:45]}  Nc6 {[%clk 0:02:12]} 3. d4 {[%clk 0:02:45]}  cxd4 {[%clk 0:02:12]} 4. Nxd4 {[%clk 0:02:46]}  Nf6 {[%clk 0:02:12]} 5. Nc3 {[%clk 0:02:47]}  e6 {[%clk 0:02:12]} 6. Ndb5 {[%clk 0:02:46]}  a6 {[%clk 0:02:12]} 7. Nd6+ {[%clk 0:02:46]}  Bxd6 {[%clk 0:02:12]} 8. Qxd6 {[%clk 0:02:47]}  b5 {[%clk 0:02:13]} 9. a3 {[%clk 0:02:42]}  Qe7 {[%clk 0:02:07]} 10. Qxe7+ {[%clk 0:02:38]}  Kxe7 {[%clk 0:02:05]} 11. f3 {[%clk 0:02:38]}  d6 {[%clk 0:02:04]} 12. Be3 {[%clk 0:02:36]}  e5 {[%clk 0:02:03]} 13. O-O-O {[%clk 0:02:34]}  Be6 {[%clk 0:02:02]} 14. b3 {[%clk 0:02:33]}  Rhc8 {[%clk 0:02:02]} 15. Kb2 {[%clk 0:02:33]}  Rab8 {[%clk 0:02:01]} 16. Nd5+ {[%clk 0:02:11]}  Bxd5 {[%clk 0:01:55]} 17. exd5 {[%clk 0:02:12]}  Na5 {[%clk 0:01:55]} 18. g4 {[%clk 0:02:04]}  Nb7 {[%clk 0:01:52]} 19. b4 {[%clk 0:02:01]}  Nd8 {[%clk 0:01:46]} 20. h4 {[%clk 0:01:56]}  Nd7 {[%clk 0:01:46]} 21. Kb3 {[%clk 0:01:15]}  Nb6 {[%clk 0:01:45]} 22. Bxb6 {[%clk 0:01:15]}  Rxb6 {[%clk 0:01:45]} 23. Rc1 {[%clk 0:01:12]}  g6 {[%clk 0:01:15]} 24. h5 {[%clk 0:01:03]}  Kf6 {[%clk 0:01:07]} 25. hxg6 {[%clk 0:01:04]}  hxg6 {[%clk 0:01:08]} 26. Rh8 {[%clk 0:01:02]}  Kg5 {[%clk 0:00:42]} 27. c4 {[%clk 0:01:01]}  bxc4+ {[%clk 0:00:41]} 28. Rxc4 {[%clk 0:01:02]}  Rcb8 {[%clk 0:00:40]} 29. Ka4 {[%clk 0:01:00]}  f5 {[%clk 0:00:37]} 30. gxf5 {[%clk 0:00:59]}  gxf5 {[%clk 0:00:38]} 31. Bd3 {[%clk 0:00:56]}  Nf7 {[%clk 0:00:34]} 32. Rxb8 {[%clk 0:00:54]}  Rxb8 {[%clk 0:00:35]} 33. Rc7 {[%clk 0:00:50]}  Kf6 {[%clk 0:00:33]} 34. Bxa6 {[%clk 0:00:49]}  e4 {[%clk 0:00:30]} 35. fxe4 {[%clk 0:00:50]}  fxe4 {[%clk 0:00:31]} 36. Kb3 {[%clk 0:00:30]}  Ng5 {[%clk 0:00:21]} 37. Bc4 {[%clk 0:00:16]}  Rh8 {[%clk 0:00:18]} 38. b5 {[%clk 0:00:15]}  Rh3+ {[%clk 0:00:16]} 39. Kb4 {[%clk 0:00:15]}  Rh1 {[%clk 0:00:14]} 40. b6 {[%clk 0:00:16]}  Rb1+ {[%clk 0:00:14]} 41. Bb3 {[%clk 0:00:16]}  Nf3 {[%clk 0:00:12]} 42. Rc3 {[%clk 0:00:15]}  Nd4 {[%clk 0:00:02]} 43. b7 {[%clk 0:00:14]} 1-0


[Site "https://www.chess.com"]

[Event "Titled Tuesday Blitz September 13 Late 2022"]
[White "Mikhalsky, Vladimir"]
[Black "Indjic, Aleksandar"]
[WhiteFideId "14144352"]
[BlackFideId "911925"]
[WhiteElo "2271"]
[BlackElo "2592"]
[Result "0-1"]
[Round "05"]
[TimeControl "180+1"]
[Date "2022.09.13"]
[WhiteClock "0:00:03"]
[BlackClock "0:00:39"]

1. d4 {[%clk 0:03:00]}  d5 {[%clk 0:02:58]} 2. g3 {[%clk 0:03:00]}  Bf5 {[%clk 0:02:56]} 3. Bg2 {[%clk 0:03:00]}  e6 {[%clk 0:02:56]} 4. Nf3 {[%clk 0:03:01]}  h6 {[%clk 0:02:54]} 5. O-O {[%clk 0:03:01]}  Nf6 {[%clk 0:02:54]} 6. c4 {[%clk 0:03:02]}  c6 {[%clk 0:02:53]} 7. b3 {[%clk 0:03:00]}  Nbd7 {[%clk 0:02:52]} 8. Bb2 {[%clk 0:03:00]}  Be7 {[%clk 0:02:30]} 9. Nbd2 {[%clk 0:02:59]}  O-O {[%clk 0:02:30]} 10. a3 {[%clk 0:02:45]}  Bh7 {[%clk 0:02:25]} 11. h3 {[%clk 0:02:42]}  a5 {[%clk 0:02:24]} 12. Ra2 {[%clk 0:02:19]}  Ne4 {[%clk 0:02:22]} 13. Qa1 {[%clk 0:02:04]}  Qb6 {[%clk 0:02:18]} 14. e3 {[%clk 0:01:50]}  Qa6 {[%clk 0:02:15]} 15. Rc1 {[%clk 0:01:48]}  f5 {[%clk 0:02:07]} 16. Bf1 {[%clk 0:01:37]}  Qa7 {[%clk 0:02:04]} 17. c5 {[%clk 0:01:27]}  g5 {[%clk 0:02:02]} 18. Nxe4 {[%clk 0:01:21]}  fxe4 {[%clk 0:02:02]} 19. Nh2 {[%clk 0:01:15]}  Rf7 {[%clk 0:01:58]} 20. Bc3 {[%clk 0:01:11]}  Raf8 {[%clk 0:01:56]} 21. b4 {[%clk 0:01:07]}  Qb8 {[%clk 0:01:56]} 22. bxa5 {[%clk 0:00:59]}  e5 {[%clk 0:01:41]} 23. Bg2 {[%clk 0:00:55]}  exd4 {[%clk 0:01:39]} 24. Bxd4 {[%clk 0:00:55]}  Qa7 {[%clk 0:01:37]} 25. Qc3 {[%clk 0:00:53]}  h5 {[%clk 0:01:34]} 26. Rb2 {[%clk 0:00:49]}  Bf6 {[%clk 0:01:30]} 27. Bf1 {[%clk 0:00:47]}  Bxd4 {[%clk 0:01:29]} 28. exd4 {[%clk 0:00:43]}  h4 {[%clk 0:01:03]} 29. Ng4 {[%clk 0:00:37]}  Rf3 {[%clk 0:00:57]} 30. Qd2 {[%clk 0:00:33]}  e3 {[%clk 0:00:55]} 31. fxe3 {[%clk 0:00:25]}  Rxg3+ {[%clk 0:00:53]} 32. Bg2 {[%clk 0:00:15]}  Be4 {[%clk 0:00:51]} 33. Qe1 {[%clk 0:00:12]}  Qb8 {[%clk 0:00:48]} 34. Rcc2 {[%clk 0:00:08]}  Nf6 {[%clk 0:00:43]} 35. Nxf6+ {[%clk 0:00:06]}  Rxf6 {[%clk 0:00:43]} 36. Rf2 {[%clk 0:00:06]}  Rxf2 {[%clk 0:00:43]} 37. Rxf2 {[%clk 0:00:06]}  g4 {[%clk 0:00:41]} 38. Kf1 {[%clk 0:00:04]}  Bd3+ {[%clk 0:00:40]} 39. Kg1 {[%clk 0:00:03]}  gxh3 {[%clk 0:00:40]} 40. Rd2 {[%clk 0:00:03]}  Be4 {[%clk 0:00:39]} 0-1


[Site "https://www.chess.com"]

[Event "Titled Tuesday Blitz September 13 Late 2022"]
[White "Mirzoev, Azer"]
[Black "Tomb, Maroun"]
[WhiteFideId "13400304"]
[BlackFideId "5300398"]
[WhiteElo "2525"]
[BlackElo "2548"]
[Result "1-0"]
[Round "05"]
[TimeControl "180+1"]
[Date "2022.09.13"]
[WhiteClock "0:00:47"]
[BlackClock "0:00:22"]

1. c4 {[%clk 0:02:59]}  d6 {[%clk 0:02:58]} 2. Nc3 {[%clk 0:02:58]}  Nf6 {[%clk 0:02:58]} 3. e4 {[%clk 0:02:57]}  e5 {[%clk 0:02:58]} 4. g3 {[%clk 0:02:56]}  Nbd7 {[%clk 0:02:58]} 5. Bg2 {[%clk 0:02:57]}  c6 {[%clk 0:02:57]} 6. Nge2 {[%clk 0:02:55]}  Be7 {[%clk 0:02:57]} 7. O-O {[%clk 0:02:55]}  a6 {[%clk 0:02:55]} 8. d3 {[%clk 0:02:49]}  b5 {[%clk 0:02:54]} 9. b3 {[%clk 0:02:48]}  O-O {[%clk 0:02:51]} 10. h3 {[%clk 0:02:48]}  Bb7 {[%clk 0:02:50]} 11. f4 {[%clk 0:02:45]}  Re8 {[%clk 0:02:48]} 12. Kh2 {[%clk 0:02:44]}  h6 {[%clk 0:02:48]} 13. Be3 {[%clk 0:02:31]}  b4 {[%clk 0:02:39]} 14. Na4 {[%clk 0:02:29]}  d5 {[%clk 0:02:40]} 15. exd5 {[%clk 0:02:18]}  cxd5 {[%clk 0:02:41]} 16. fxe5 {[%clk 0:02:14]}  Nxe5 {[%clk 0:02:42]} 17. Nf4 {[%clk 0:02:08]}  g5 {[%clk 0:01:57]} 18. Nh5 {[%clk 0:02:01]}  Rb8 {[%clk 0:01:05]} 19. Ba7 {[%clk 0:01:57]}  Ra8 {[%clk 0:00:49]} 20. Bd4 {[%clk 0:01:55]}  Nxh5 {[%clk 0:00:42]} 21. Qxh5 {[%clk 0:01:52]}  Bf6 {[%clk 0:00:41]} 22. Rae1 {[%clk 0:01:22]}  Qe7 {[%clk 0:00:20]} 23. Bxe5 {[%clk 0:00:54]}  Bxe5 {[%clk 0:00:21]} 24. Rxe5 {[%clk 0:00:53]}  Qxe5 {[%clk 0:00:22]} 25. Qxf7+ {[%clk 0:00:53]}  Kh8 {[%clk 0:00:22]} 26. Rf6 {[%clk 0:00:47]} 1-0


[Site "https://www.chess.com"]